bitfinex-derivatives/quotes_ETHF0:USTF0_20250830
["timestamp","ask_amount","ask_price","bid_price","bid_amount"]
[1756580799992,0.204,4351.3,4350.5,3.2078]
[1756580800192,0.4996,4350.6,4350.5,3.2078]
[1756580800489,0.4996,4350.6,4350.5,3.4388]
[1756580803890,0.4996,4350.6,4350.3,33.089]
[1756580804096,0.4996,4350.5,4350.4,0.231]
[1756580811097,3.7074,4350.5,4350.4,0.231]
[1756580811300,7.93726,4350.5,4349.7,0.2687]
[1756580811497,3.7074,4350.5,4349.8,0.231]
[1756580811901,0.1899,4349.9,4349.8,0.231]
[1756580812100,0.4996,4349.9,4349.8,0.7066]
[1756580812297,0.4996,4349.9,4349.8,0.4756]
[1756580820908,0.3097,4350.4,4349.8,4.2069]
[1756580821108,0.3097,4350.4,4350.3,0.4756]
[1756580821309,0.3097,4350.4,4350.3,0.7066]
[1756580821705,0.4996,4350.4,4350.3,0.7066]
[1756580826798,0.4996,4350.4,4349.9,0.2687]
[1756580827001,0.4996,4350.4,4349.4,3.2078]
[1756580827002,0.1899,4350.1,4350.0,0.4997]
[1756580827202,0.2817,4350.0,4349.5,0.49879]
[1756580827402,0.4861,4349.6,4349.5,0.4708]
[1756580827605,0.4861,4349.6,4349.5,0.7018]
[1756580829208,0.4861,4349.6,4349.5,0.4708]
[1756580829412,0.4861,4349.6,4349.5,0.7018]
[1756580832110,0.4861,4349.6,4349.5,0.231]
[1756580832412,0.4861,4349.6,4349.5,0.4999]
[1756580833216,0.4861,4349.6,4349.0,0.18375639]
[1756580833517,0.4861,4349.6,4349.5,0.4708]
[1756580837915,0.2817,4349.6,4349.5,0.4708]
[1756580839422,0.4861,4349.6,4349.5,0.4708]
[1756580843225,3.2078,4350.0,4349.5,0.2019]
[1756580843226,0.2817,4349.9,4349.5,0.2019]
[1756580843425,3.6939,4350.0,4349.9,0.4708]
[1756580844429,3.6939,4350.0,4349.9,0.2019]
[1756580845229,3.6939,4350.0,4349.6,0.231]
[1756580845428,3.6939,4350.0,4349.7,0.2689]
[1756580845626,3.6939,4350.0,4349.6,0.231]
[1756580846429,3.4122,4350.0,4349.6,0.4999]
[1756580846728,0.4861,4349.7,4349.6,0.4999]
[1756580848023,0.4861,4349.7,4349.6,0.7018]
[1756580848425,0.4861,4349.7,4349.6,0.4329]
[1756580848722,0.4861,4349.7,4349.6,0.231]
[1756580852531,0.4861,4349.7,4349.6,0.7018]
[1756580861247,0.3079,4350.2,4349.8,0.2013]
[1756580861447,0.5036,4350.5,4350.4,0.2013]
[1756580861746,1.36081615,4350.5,4350.4,0.2013]
[1756580861947,1.36081615,4350.5,4350.2,0.2689]
[1756580862150,0.1957,4349.6,4349.5,0.4702]
[1756580862447,0.5036,4349.6,4349.5,0.7012]
[1756580866644,0.5036,4349.6,4349.2,0.2689]
[1756580866849,0.5036,4349.6,4349.4,0.2689]
[1756580867049,0.5036,4349.6,4349.5,0.2013]
[1756580867244,0.5036,4349.6,4349.5,0.4702]
[1756580868443,0.3079,4349.5,4349.3,0.2689]
[1756580868647,0.5036,4349.4,4349.3,0.2689]
[1756580868951,0.5036,4349.4,4349.3,0.7012]
[1756580869748,3.2078,4349.6,4348.5,0.2689]
[1756580869951,0.1957,4348.6,4348.5,0.4702]
[1756580870151,0.5036,4348.6,4348.5,0.4702]
[1756580870351,0.5036,4348.6,4348.5,0.7012]
[1756580877957,0.3079,4348.6,4348.5,0.7012]
[1756580880754,0.3079,4349.0,4348.8,0.41386]
[1756580880951,0.5036,4349.6,4349.5,0.4702]
[1756580881153,0.5036,4350.0,4349.9,0.4702]
[1756580881352,0.3079,4350.0,4349.9,0.7012]
[1756580882155,3.5157,4350.1,4349.9,0.4323]
[1756580882353,3.5157,4350.1,4350.0,0.2689]
[1756580882555,3.5157,4350.1,4350.0,0.4702]
[1756580883356,3.7114,4350.1,4350.0,0.4702]
[1756580887460,0.5036,4350.1,4350.0,0.4702]
[1756580891664,0.503,4350.0,4349.9,3.4388]
[1756580893462,0.503,4350.0,4349.9,3.2078]
[1756580893669,0.503,4350.0,4348.9,8.7723]
[1756580893670,0.503,4349.0,4348.9,8.7723]
[1756580893963,0.3071,4350.0,4348.9,3.6323]
[1756580894167,0.3071,4350.0,4349.1,0.2688]
[1756580894463,0.3071,4350.0,4349.3,0.2688]
[1756580894765,0.1959,4349.4,4349.3,0.4623]
[1756580894967,0.503,4349.4,4349.3,0.4623]
[1756580895964,0.503,4349.0,4348.9,3.2078]
[1756580896261,0.503,4348.5,4348.4,3.4013]
[1756580896562,0.503,4348.5,4348.4,3.9011]
[1756580897662,0.503,4348.5,4348.4,0.231]
[1756580897864,0.503,4348.5,4348.1,0.2688]
[1756580898166,0.503,4348.5,4348.2,0.231]
[1756580899863,0.3071,4348.9,4348.3,0.231]
[1756580900066,0.503,4348.4,4348.3,0.231]
[1756580900269,0.503,4348.4,4348.3,0.6933]
[1756580902477,0.3071,4348.9,4348.4,0.2699]
[1756580902671,0.503,4348.9,4348.8,0.1935]
[1756580902869,0.503,4348.9,4348.8,0.6944]
[1756580903671,0.503,4348.9,4348.8,0.4245]
[1756580904072,0.503,4348.9,4348.8,0.231]
[1756580908781,0.503,4348.9,4348.8,0.5009]
[1756580910577,0.3071,4349.4,4348.8,0.4245]
[1756580910784,0.3071,4349.4,4349.3,0.1935]
[1756580910970,0.3071,4349.4,4349.3,0.4634]
[1756580911174,0.503,4349.4,4349.3,0.4634]
[1756580915581,0.503,4349.4,4349.3,0.1935]
[1756580915784,0.3071,4349.3,4349.2,0.1935]
[1756580915984,0.503,4349.3,4349.2,0.4634]
[1756580924788,0.2057,4349.0,4348.6,0.269]
[1756580925087,0.5128,4348.5,4348.4,36.5948]
[1756580925289,0.5128,4348.5,4348.4,36.8258]
[1756580928192,0.3071,4349.5,4348.5,0.269]
[1756580929086,0.2057,4348.8,4348.7,0.4582]
[1756580929286,0.5128,4348.8,4348.7,0.4582]
[1756580937299,0.5128,4348.8,4348.6,0.231]
[1756580937500,0.5128,4348.8,4348.4,36.3258]
[1756580937702,0.5128,4348.5,4348.4,36.3258]
[1756580937906,0.5128,4348.5,4348.4,36.5568]
[1756580938299,0.5128,4348.5,4348.4,36.8258]
[1756580939606,0.5128,4348.5,4348.4,36.5568]
[1756580941909,0.5128,4348.5,4348.4,33.349]
[1756580946209,0.5128,4348.5,4348.4,33.618]
[1756580947318,0.5128,4348.5,4348.4,0.6892]
[1756580955224,0.5128,4348.5,4347.8,3.39012933]
[1756580955423,0.4828,4348.1,4348.0,0.4619]
[1756580955619,0.4828,4348.1,4348.0,0.6929]
[1756580958521,0.2898,4348.0,4347.8,3.39012933]
[1756580958721,0.4828,4348.0,4347.9,0.6929]
[1756580962939,0.4828,4348.0,4347.9,0.4619]
[1756580963138,0.4828,4348.0,4347.8,3.2078]
[1756580963438,3.2078,4348.6,4347.8,3.6689]
[1756580963439,0.4828,4347.9,4347.8,3.6689]
[1756580963632,0.4828,4347.9,4347.8,3.8999]
[1756580964939,0.4828,4347.9,4347.8,0.6921]
[1756580967135,0.4828,4347.9,4347.3,3.2078]
[1756580967345,0.4828,4347.4,4347.3,3.3998]
[1756580967534,0.4828,4347.4,4347.3,3.6308]
[1756580967839,0.2898,4348.5,4347.4,0.2691]
[1756580968141,0.2898,4348.3,4347.4,0.2691]
[1756580968640,0.2898,4348.1,4347.4,0.2691]
[1756580969228,0.4828,4348.1,4348.0,0.4611]
[1756580969433,0.4828,4348.1,4348.0,0.6921]
[1756580970043,0.4828,4348.1,4348.0,0.423]
[1756580970340,0.4828,4348.1,4348.0,0.231]
[1756580970540,3.6906,4348.1,4348.0,0.231]
[1756580975042,3.4008,4348.1,4347.8,0.231]
[1756580975246,0.4828,4347.9,4347.8,0.231]
[1756580977144,0.4828,4347.9,4347.2,33.12]
[1756580977447,3.2078,4348.1,4346.8,3.2078]
[1756580977448,0.4881,4346.9,4346.8,3.6663]
[1756580977646,0.4881,4346.9,4346.8,3.8973]
[1756580982140,0.4881,4346.9,4346.8,3.2078]
[1756580982346,0.4881,4346.8,4346.7,0.6895]
[1756580983143,0.2014,4346.8,4346.7,0.231]
[1756580983452,0.4881,4346.8,4346.7,0.231]
[1756580984551,0.4881,4346.8,4346.7,0.6895]
[1756580985754,0.2014,4346.8,4346.7,0.231]
[1756580985949,0.4881,4346.8,4346.7,0.231]
[1756580986346,0.4881,4346.8,4346.7,0.5002]
[1756580986851,0.4881,4346.8,4346.7,0.6895]
[1756580988547,0.4881,4346.8,4346.7,0.231]
[1756580988952,0.4881,4346.8,4346.7,0.5002]
[1756580989553,0.4881,4346.8,4346.7,0.6895]
[1756580995849,3.2078,4347.0,4346.7,0.4203]
[1756580996058,3.2078,4347.0,4346.9,0.1893]
[1756580996358,3.4945,4347.0,4346.9,0.4585]
[1756580997057,3.2078,4347.0,4346.9,0.4585]
[1756580997658,3.4945,4347.0,4346.9,0.4585]
[1756580997854,3.6959,4347.0,4346.9,0.4585]
[1756581000758,0.2867,4347.5,4347.0,0.2692]
[1756581000961,0.4881,4347.5,4347.4,0.4585]
[1756581001365,3.4945,4347.8,4347.4,0.4585]
[1756581001661,3.4945,4347.8,4347.3,0.231]
[1756581001662,0.2867,4347.7,4347.6,0.4585]
[1756581002363,0.4881,4347.7,4347.6,0.4585]
[1756581002855,0.2014,4347.7,4347.3,0.231]
[1756581003061,0.4881,4347.0,4346.9,3.2078]
[1756581003254,0.4881,4347.0,4346.9,3.4388]
[1756581003455,0.4881,4347.0,4346.9,3.708]
[1756581004060,0.4881,4347.0,4346.9,3.8973]
[1756581007760,0.2867,4347.0,4346.9,3.8973]
[1756581007964,0.2826,4347.7,4347.0,0.2694]
[1756581008868,0.1978,4347.1,4347.0,0.4695]
[1756581009168,0.4804,4347.1,4347.0,0.4695]
[1756581013967,0.1978,4347.1,4346.9,3.2078]
[1756581014268,0.4804,4347.1,4347.0,0.7005]
[1756581019774,0.4804,4347.1,4347.0,0.231]
[1756581020572,0.4804,4347.1,4347.0,0.5002]
[1756581020773,0.4804,4347.1,4347.0,0.7003]
[1756581023477,0.4804,4347.1,4346.5,0.41408]
[1756581023676,0.4804,4346.7,4346.6,0.7003]
[1756581024673,0.2826,4346.7,4346.6,0.7003]
[1756581025377,3.2078,4347.8,4346.6,0.4311]
[1756581025578,0.2826,4347.6,4346.7,0.2692]
[1756581027579,0.4804,4346.7,4346.6,0.4693]
[1756581027779,0.4804,4346.7,4346.6,0.7003]
[1756581036192,0.4804,4346.7,4346.6,0.4693]
[1756581036393,0.4804,4346.7,4346.6,0.7003]
[1756581037396,0.4804,4346.7,4344.7,4.10779043]
[1756581037397,0.4896,4345.9,4345.6,0.269]
[1756581037687,0.4896,4345.9,4345.8,0.206]
[1756581037889,1.11526885,4345.9,4345.8,0.475]
[1756581038284,0.4896,4345.9,4345.8,0.475]
[1756581038794,0.4896,4345.9,4345.8,0.206]
[1756581038989,0.4896,4345.9,4345.6,0.269]
[1756581039196,0.1901,4345.9,4345.4,0.269]
[1756581039394,0.1901,4345.9,4345.8,0.475]
[1756581039794,0.4896,4345.9,4345.8,0.475]
[1756581040096,0.4896,4345.9,4345.8,0.206]
[1756581041094,0.4896,4345.9,4345.7,0.5]
[1756581041293,0.4896,4345.8,4345.7,0.5]
[1756581042398,0.4896,4345.8,4345.7,0.706]
[1756581043493,0.4896,4345.8,4345.7,0.231]
[1756581045303,0.1901,4345.8,4345.6,0.231]
[1756581045501,0.4896,4345.7,4345.6,0.437]
[1756581045997,0.4896,4345.7,4345.6,0.706]
[1756581046192,0.4896,4345.7,4344.3,1.03572]
[1756581046193,0.4896,4344.5,4344.4,0.475]
[1756581046398,0.4896,4344.5,4344.4,0.707]
[1756581047000,0.4896,4344.4,4344.3,3.2078]
[1756581047393,0.23020001,4344.3,4342.5,3.5195]
[1756581047596,3.2078,4343.8,4343.7,0.206]
[1756581047798,3.2078,4343.8,4343.7,0.5177]
[1756581048201,0.115,4344.2,4344.1,0.206]
[1756581048402,0.115,4344.2,4344.1,0.7507]
[1756581048596,0.115,4344.2,4344.1,4.7507]
[1756581048799,3.2078,4344.9,4344.1,4.439]
[1756581049002,3.2078,4344.9,4344.8,0.206]
[1756581049210,3.3918,4344.9,4344.8,0.7507]
[1756581049507,3.5068,4344.9,4344.8,0.7507]
[1756581052301,3.2078,4344.9,4344.8,0.7507]
[1756581054402,3.2078,4345.4,4344.9,0.3117]
[1756581054699,3.5068,4345.4,4345.3,0.5177]
[1756581056702,3.3918,4345.4,4345.3,0.5177]
[1756581056904,3.2078,4345.4,4345.3,0.5177]
[1756581058200,3.5068,4345.4,4345.3,0.5177]
[1756581065114,3.5068,4345.4,4345.3,0.7507]
[1756581065515,0.299,4345.4,4345.3,0.7507]
[1756581066722,3.3918,4345.9,4345.8,0.206]
[1756581066921,3.3918,4345.9,4345.8,0.5177]
[1756581067124,3.3918,4345.9,4345.8,0.3117]
[1756581067312,0.1162,4345.8,4345.4,0.3089]
[1756581067615,0.3021,4345.8,4345.7,0.516]
[1756581069224,0.3021,4345.8,4345.7,0.3089]
[1756581071517,0.1162,4345.7,4345.3,0.233]
[1756581071720,0.3021,4345.4,4345.3,0.4401]
[1756581072425,0.3021,4345.4,4345.3,0.749]
[1756581072619,0.3021,4345.4,4345.3,0.516]
[1756581072824,3.5099,4345.4,4345.3,0.5419]
[1756581073019,3.5099,4345.4,4345.3,0.3089]
[1756581073223,0.3021,4344.7,4344.6,0.516]
[1756581073420,0.3021,4344.7,4344.6,0.749]
[1756581074827,0.3021,4344.7,4344.6,0.516]
[1756581075027,0.3021,4344.7,4344.6,0.749]
[1756581079825,0.1859,4344.7,4344.6,0.749]
[1756581080026,0.3021,4344.7,4344.6,0.749]
[1756581080915,3.2078,4344.9,4344.7,0.3089]
[1756581081117,3.2078,4344.9,4344.8,0.516]
[1756581081719,3.5109,4344.9,4344.8,0.516]
[1756581081919,3.2078,4346.0,4345.6,0.41416]
[1756581082120,3.2078,4346.0,4345.9,0.516]
[1756581082326,3.5109,4346.0,4345.9,0.516]
[1756581084026,0.1166,4345.9,4345.4,0.3089]
[1756581084222,0.3031,4345.5,4345.4,0.516]
[1756581084430,0.3031,4345.5,4345.4,0.749]
[1756581085425,3.2078,4346.0,4345.4,0.516]
[1756581085732,3.2078,4346.0,4345.9,0.516]
[1756581086523,3.2078,4346.0,4345.9,0.749]
[1756581086731,3.5109,4346.0,4345.9,0.749]
[1756581088333,3.5109,4346.0,4345.9,0.516]
[1756581088629,3.5109,4346.0,4345.9,0.749]
[1756581089324,3.2078,4346.5,4345.9,0.749]
[1756581089525,3.5109,4347.0,4346.9,0.2071]
[1756581089732,3.3943,4347.0,4346.9,0.749]
[1756581090034,3.5109,4347.0,4346.9,0.749]
[1756581090735,3.3943,4347.0,4346.9,0.749]
[1756581091034,3.5109,4347.6,4347.5,0.516]
[1756581091226,4.13472839,4347.6,4347.5,0.516]
[1756581091427,3.5109,4347.6,4347.5,0.516]
[1756581093032,0.1865,4347.1,4347.0,0.2071]
[1756581093231,0.1865,4347.1,4346.1,3.2078]
[1756581093429,0.1865,4347.1,4345.5,0.516]
[1756581093430,0.1865,4345.6,4345.5,0.516]
[1756581093938,3.2078,4345.9,4345.5,0.2071]
[1756581094130,3.3943,4345.9,4345.8,0.516]
[1756581094530,3.3943,4345.9,4345.8,0.752]
[1756581095537,3.5109,4345.9,4345.8,0.752]
[1756581096538,3.5109,4345.9,4345.8,0.3089]
[1756581096732,0.3031,4345.8,4345.7,0.236]
[1756581097333,0.3031,4345.8,4345.7,0.5428]
[1756581097540,0.3031,4345.8,4345.7,0.7441]
[1756581099136,3.2078,4345.9,4345.7,0.4373]
[1756581099441,3.2078,4345.9,4345.8,0.3068]
[1756581099943,3.2078,4346.9,4345.9,0.3068]
[1756581100136,0.62244545,4346.8,4345.9,0.3068]
[1756581100339,0.1155,4346.7,4345.9,0.3068]
[1756581100731,3.2078,4346.9,4346.6,0.2013]
[1756581100937,3.2078,4346.9,4346.8,0.5081]
[1756581101137,3.2078,4346.9,4346.8,0.7441]
[1756581102344,3.2078,4347.4,4346.9,0.3068]
[1756581102547,0.1848,4347.3,4347.2,0.5081]
[1756581102747,3.2078,4347.4,4347.3,0.5081]
[1756581102947,3.3926,4347.4,4347.3,0.5081]
[1756581103447,3.5081,4347.4,4347.3,0.5081]
[1756581103746,3.3926,4347.4,4347.3,0.5081]
[1756581103946,3.2078,4347.4,4347.3,0.5081]
[1756581104348,0.1155,4347.7,4347.3,0.5081]
[1756581104647,0.1155,4347.8,4347.0,0.3068]
[1756581105245,3.2078,4347.9,4347.8,0.5081]
[1756581105444,3.2078,4347.9,4347.8,0.7441]
[1756581106342,3.5081,4347.9,4347.8,0.7441]
[1756581107540,0.1155,4347.8,4347.5,0.3068]
[1756581107750,0.1848,4347.7,4347.6,0.7441]
[1756581108744,0.3003,4347.7,4347.6,0.7441]
[1756581109049,0.1848,4347.7,4347.6,0.7441]
[1756581111748,0.3003,4347.7,4347.6,0.7441]
[1756581113057,0.1848,4347.7,4347.6,0.7441]
[1756581116356,0.1155,4348.0,4347.7,0.3068]
[1756581116655,0.3003,4348.0,4347.9,0.5081]
[1756581118351,3.3926,4348.0,4347.7,0.3068]
[1756581118553,0.3003,4347.7,4347.6,0.236]
[1756581118853,0.3003,4347.7,4347.6,0.7441]
[1756581119257,0.3003,4347.7,4347.6,0.5081]
[1756581119557,0.3003,4347.7,4347.6,0.7441]
[1756581121154,0.3003,4347.7,4347.6,0.7431]
[1756581122359,0.3003,4347.7,4347.6,0.7441]
[1756581124062,3.2078,4348.0,4347.9,0.2013]
[1756581124263,3.2078,4348.0,4347.9,0.5081]
[1756581124559,3.5081,4348.0,4347.9,0.5081]
[1756581124762,3.2078,4348.0,4347.9,0.5081]
[1756581125354,3.5081,4348.0,4347.9,0.3068]
[1756581125560,3.5081,4348.0,4347.9,0.5081]
[1756581126964,3.5081,4348.0,4347.9,0.3068]
[1756581127760,3.5081,4348.0,4347.9,0.5081]
[1756581129960,3.2078,4348.5,4348.0,0.2963]
[1756581130160,0.62336363,4348.4,4347.7,0.2963]
[1756581130366,0.2992,4348.2,4348.1,0.1924]
[1756581130569,0.2992,4348.2,4348.1,0.4887]
[1756581131162,0.92309355,4348.2,4348.1,0.4887]
[1756581131864,0.92309355,4348.2,4347.6,0.236]
[1756581132060,0.2992,4347.7,4347.6,0.4284]
[1756581132666,0.2992,4347.7,4347.6,0.7247]
[1756581135673,0.1841,4347.7,4347.6,0.7247]
[1756581135973,0.2992,4347.7,4347.6,0.7247]
[1756581136172,0.1841,4347.7,4347.6,0.7247]
[1756581136373,3.2078,4348.0,4347.6,0.4284]
[1756581136574,0.92422348,4347.9,4347.8,0.1924]
[1756581136777,0.92422348,4347.9,4347.8,0.4887]
[1756581139575,0.2992,4347.9,4347.8,0.4887]
[1756581140275,0.92428759,4347.9,4347.8,0.4887]
[1756581140875,0.2992,4347.9,4347.8,0.4887]
[1756581141377,0.62510459,4347.9,4347.8,0.4887]
[1756581141573,0.1154,4348.3,4348.2,0.1924]
[1756581141777,0.1154,4348.3,4348.2,0.4887]
[1756581141977,0.62510228,4348.3,4348.2,0.4887]
[1756581143476,0.92520228,4348.3,4348.2,0.4887]
[1756581160589,0.92510769,4348.3,4348.2,0.4887]
[1756581162485,0.80970769,4348.3,4347.9,0.234]
[1756581162687,3.5079,4348.0,4347.9,0.234]
[1756581162892,4.13290769,4348.0,4347.9,0.234]
[1756581163189,4.13290769,4348.0,4347.9,0.523]
[1756581164493,4.13290769,4348.0,4347.9,0.7227]
[1756581165189,4.13290769,4348.0,4347.9,0.4887]
[1756581165393,4.01750769,4348.0,4347.7,0.234]
[1756581165587,0.3001,4347.8,4347.7,0.7227]
[1756581166188,0.3001,4347.8,4347.7,0.4887]
[1756581166388,0.92555152,4347.8,4347.7,0.289]
[1756581171692,0.92555152,4347.8,4347.7,0.4887]
[1756581171892,3.2078,4348.0,4347.7,0.1997]
[1756581172093,0.6255152,4347.9,4347.8,0.4887]
[1756581172399,0.9256152,4347.9,4347.8,0.4887]
[1756581175401,0.6255152,4347.9,4347.8,0.4887]
[1756581175901,0.9256152,4347.9,4347.8,0.4887]
[1756581178203,0.6255152,4347.9,4347.8,0.4887]
[1756581179203,0.9256152,4347.9,4347.8,0.4887]
[1756581182204,0.9256152,4347.9,4347.8,0.7217]
[1756581204416,1.1556152,4347.9,4347.8,0.233]
[1756581204822,0.9256152,4347.9,4347.8,0.233]
[1756581205218,0.1947,4347.3,4347.2,0.4295]
[1756581205418,0.4932,4347.3,4347.2,0.4295]
[1756581206019,0.4932,4347.3,4347.2,0.1965]
[1756581206510,0.1947,4347.3,4346.8,32.1666]
[1756581206710,0.23276902,4350.5,4346.8,32.1666]
[1756581206711,0.4932,4346.9,4346.8,32.1666]
[1756581206924,1.1175586,4346.9,4346.8,32.1666]
[1756581207421,0.4932,4346.9,4346.8,32.4732]
[1756581213317,0.4932,4346.9,4346.8,32.7062]
[1756581215023,0.1947,4346.9,4346.8,32.7062]
[1756581216222,3.2078,4347.0,4346.9,0.5031]
[1756581216622,3.5063,4347.0,4346.9,0.5031]
[1756581217327,3.701,4347.0,4346.9,0.5031]
[1756581217830,6.22,4350.2,4346.9,0.5031]
[1756581217831,3.2078,4347.6,4346.9,0.5031]
[1756581218027,0.62212524,4347.5,4347.0,0.297]
[1756581218331,0.4864,4347.5,4347.4,0.498]
[1756581218529,1.10853145,4347.5,4347.4,0.731]
[1756581220734,0.62213145,4347.5,4347.4,0.731]
[1756581220932,3.2078,4347.6,4347.4,0.434]
[1756581221136,3.2078,4347.6,4347.5,0.498]
[1756581221530,3.5036,4347.6,4347.5,0.498]
[1756581222237,3.6942,4347.6,4347.5,0.498]
[1756581225944,3.3984,4347.6,4347.5,0.498]
[1756581226244,3.2078,4348.1,4347.6,0.297]
[1756581226547,3.2078,4348.1,4348.0,0.498]
[1756581226741,3.2078,4348.1,4348.0,0.731]
[1756581228845,3.2078,4348.6,4348.5,0.498]
[1756581229042,3.2078,4349.1,4348.6,0.297]
[1756581229240,3.2078,4349.1,4348.5,0.233]
[1756581229241,3.2078,4349.1,4349.0,0.498]
[1756581229540,3.2078,4349.1,4349.0,0.731]
[1756581229936,0.4864,4349.1,4349.0,0.731]
[1756581234749,3.2078,4349.6,4349.0,0.731]
[1756581234750,0.4864,4349.5,4349.4,0.498]
[1756581236542,0.2958,4349.4,4348.5,0.297]
[1756581236750,0.4864,4348.6,4348.5,0.498]
[1756581236949,0.4864,4348.6,4348.5,0.73]
[1756581237954,0.4864,4348.6,4348.5,0.498]
[1756581238156,0.4864,4348.6,4348.5,0.73]
[1756581238957,0.4864,4348.6,4348.5,0.498]
[1756581239156,0.4864,4348.6,4348.5,0.73]
[1756581239852,0.4864,4348.6,4348.5,0.498]
[1756581240058,3.6942,4348.6,4348.5,0.232]
[1756581240445,3.6942,4348.6,4347.7,0.17996811]
[1756581240757,3.6942,4348.6,4348.3,0.232]
[1756581241150,3.3984,4348.6,4348.3,0.232]
[1756581241457,3.2078,4348.6,4348.4,0.201]
[1756581242057,3.2078,4348.6,4348.5,0.498]
[1756581242249,3.6942,4348.6,4348.5,0.498]
[1756581250350,3.2078,4348.6,4348.5,0.498]
[1756581252058,3.7017,4348.6,4348.5,0.498]
[1756581262571,3.7017,4348.6,4348.5,0.73]
[1756581263469,3.7017,4348.6,4348.1,0.41392]
[1756581263772,0.4939,4348.3,4348.2,0.7331]
[1756581267676,0.4939,4348.3,4348.2,0.5011]
[1756581267975,0.4939,4348.3,4348.2,0.7331]
[1756581271479,0.1996,4348.3,4348.2,0.232]
[1756581271775,0.4939,4348.3,4348.2,0.232]
[1756581272674,0.4939,4348.3,4348.2,0.5425]
[1756581272876,0.4939,4348.3,4348.2,0.7331]
[1756581278884,0.3017,4348.2,4347.9,33.4039]
[1756581279080,0.501,4348.0,4347.9,33.4039]
[1756581279280,0.501,4348.0,4347.9,33.354]
[1756581280787,0.501,4348.0,4347.9,33.122]
[1756581280983,0.501,4348.0,4347.9,33.354]
[1756581283284,0.501,4348.0,4347.9,33.6359]
[1756581283686,0.501,4348.0,4347.9,33.122]
[1756581283888,0.501,4348.0,4347.9,33.354]
[1756581284290,4.501,4348.0,4347.9,33.122]
[1756581284491,5.12350105,4348.0,4347.9,33.354]
[1756581286494,5.12350105,4348.0,4347.9,0.232]
[1756581287283,4.501,4348.0,4347.9,0.232]
[1756581287689,5.12304347,4348.0,4347.4,0.2819]
[1756581287890,3.4071,4347.6,4347.5,0.232]
[1756581288095,3.7088,4347.6,4347.5,0.232]
[1756581288297,3.7088,4347.6,4347.5,0.5139]
[1756581288791,3.7088,4347.6,4347.5,0.2819]
[1756581289099,3.7088,4347.6,4347.5,0.232]
[1756581290099,3.5095,4347.6,4347.5,0.7064]
[1756581290490,3.7088,4347.6,4347.5,0.7064]
[1756581301210,3.4071,4347.6,4346.5,33.124]
[1756581301406,0.501,4346.8,4346.7,0.4744]
[1756581301907,0.501,4346.8,4346.7,0.7064]
[1756581302306,0.501,4346.8,4346.7,0.4744]
[1756581302506,0.501,4346.8,4346.7,0.7064]
[1756581302706,0.1993,4346.6,4346.5,33.124]
[1756581302908,3.7088,4346.6,4346.5,33.356]
[1756581303708,3.7088,4346.6,4346.5,33.6379]
[1756581304221,3.7088,4346.6,4346.5,33.124]
[1756581304515,3.7088,4346.6,4346.5,33.356]
[1756581305714,3.7088,4346.6,4346.5,33.6379]
[1756581306117,3.2078,4346.6,4346.5,33.6379]
[1756581306309,3.7088,4347.4,4346.6,0.2819]
[1756581306617,3.7088,4347.4,4347.3,0.4744]
[1756581307516,4.32910126,4347.4,4347.3,0.4744]
[1756581308218,4.32921148,4347.4,4347.3,0.4744]
[1756581313919,4.32921148,4347.4,4347.2,0.232]
[1756581314119,0.82201148,4347.3,4347.2,0.232]
[1756581314417,1.13191148,4347.3,4347.2,0.5362]
[1756581317020,1.13191148,4347.3,4347.2,0.732]
[1756581326122,0.5115,4347.3,4347.2,0.732]
[1756581326513,3.2078,4347.4,4347.2,0.732]
[1756581326713,3.2078,4347.4,4347.3,0.5]
[1756581330427,3.7193,4347.4,4347.3,0.5]
[1756581332129,3.7193,4347.4,4346.5,33.124]
[1756581332130,3.4094,4347.4,4346.6,0.3042]
[1756581332333,0.2016,4346.8,4346.7,0.4278]
[1756581332629,0.5115,4346.8,4346.7,0.732]
[1756581333327,0.2016,4346.8,4346.7,0.732]
[1756581337029,3.2078,4347.4,4346.7,0.4278]
[1756581337232,3.2078,4347.4,4346.8,0.3042]
[1756581337433,0.2928,4347.3,4346.8,0.3042]
[1756581338535,0.2928,4347.3,4346.7,0.232]
[1756581338536,0.4849,4347.3,4347.2,0.5046]
[1756581338730,0.4849,4347.3,4347.2,0.7366]
[1756581338926,3.2078,4347.4,4347.3,0.3065]
[1756581339432,3.2078,4347.4,4347.3,0.5046]
[1756581339834,3.5006,4348.0,4347.9,0.1981]
[1756581340029,3.5006,4348.0,4347.9,0.7366]
[1756581340227,3.6927,4348.0,4347.9,0.7366]
[1756581342928,3.2078,4348.0,4347.9,0.7366]
[1756581343125,3.2078,4348.5,4348.4,0.1981]
[1756581343423,3.2078,4348.5,4348.4,0.7366]
[1756581344429,0.2928,4349.0,4348.4,3.6379]
[1756581344636,0.4849,4349.0,4348.9,0.1981]
[1756581344937,0.4849,4349.0,4348.9,0.7366]
[1756581346238,3.5006,4349.2,4349.0,0.3065]
[1756581346537,3.6927,4349.2,4349.1,0.5046]
[1756581349139,0.2928,4349.5,4349.1,0.5046]